fUST/lending_fUST_20260612
["ID","MTS","AMOUNT","RATE_DAILY","PERIOD"]
[424877482,1781227839000,-500.0,0.00035616,18]
[424877485,1781227839000,-554.64,0.00035616,18]
[424877484,1781227839000,-500.0,0.00035616,18]
[424877486,1781227839000,-500.0,0.00035616,18]
[424877487,1781227839000,-500.0,0.00035616,18]
[424877430,1781227839000,-500.0,0.00026297,2]
[424877462,1781227839000,-152.0,0.00034658,2]
[424877461,1781227839000,-152.0,0.00034658,2]
[424877476,1781227839000,-296.70052525,0.00035053,2]
[424877457,1781227839000,-152.0,0.00034407,30]
[424877458,1781227839000,-571.69783958,0.00034457,7]
[424877436,1781227839000,-544.89,0.00027123,2]
[424877432,1781227839000,-200.0,0.00026422,120]
[424877433,1781227839000,-544.89,0.00026575,2]
[424877434,1781227839000,-544.89,0.00026849,2]
[424877435,1781227839000,-441.6150213,0.00026903,2]
[424877442,1781227839000,-221.0214,0.00028865,2]
[424877440,1781227839000,-365.03,0.000275,2]
[424877428,1781227839000,-457.79109012,0.00026297,2]
[424877446,1781227839000,-1000.0,0.00029877,30]
[424877450,1781227839000,-186.0,0.00032664,2]
[424877449,1781227839000,-441.6150213,0.00032102,2]
[424877443,1781227839000,-441.6150213,0.00029502,2]
[424877445,1781227839000,-1000.0,0.00029877,30]
[424877447,1781227839000,-579.0,0.00029877,30]
[424877444,1781227839000,-186.0,0.00029664,2]
[424877460,1781227839000,-152.0,0.00034589,2]
[424877456,1781227839000,-152.0,0.00034407,30]
[424877454,1781227839000,-152.0,0.00034338,30]
[424877463,1781227839000,-152.0,0.00034699,7]
[424877452,1781227839000,-169.0,0.00032865,30]
[424877459,1781227839000,-294.1344,0.00034461,7]
[424877453,1781227839000,-160.0,0.00033571,7]
[424877451,1781227839000,-1000.0,0.00032865,30]
[424877448,1781227839000,-776.00922555,0.00030246,2]
[424877441,1781227839000,-364.47,0.000275,2]
[424877455,1781227839000,-152.0,0.00034338,30]
[424877527,1781227840000,-500.0,0.00035616,18]
[424877532,1781227840000,-500.0,0.00035616,18]
[424877530,1781227840000,-500.0,0.00035616,18]
[424877529,1781227840000,-500.0,0.00035616,18]
[424877525,1781227840000,-500.0,0.00035616,18]
[424877534,1781227840000,-500.0,0.00035616,18]
[424877533,1781227840000,-903.19,0.00035616,18]
[424877523,1781227840000,-500.0,0.00035616,18]
[424877522,1781227840000,-500.0,0.00035616,18]
[424877518,1781227840000,-500.0,0.00035616,18]
[424877524,1781227840000,-500.0,0.00035616,18]
[424877528,1781227840000,-500.0,0.00035616,18]
[424877537,1781227840000,-500.0,0.00035616,18]
[424877531,1781227840000,-500.0,0.00035616,18]
[424877535,1781227840000,-500.0,0.00035616,18]
[424877547,1781227840000,-500.0,0.00035616,18]
[424877545,1781227840000,-500.0,0.00035616,18]
[424877544,1781227840000,-500.0,0.00035616,18]
[424877541,1781227840000,-1371.58,0.00035616,18]
[424877546,1781227840000,-500.0,0.00035616,18]
[424877542,1781227840000,-679.21,0.00035616,18]
[424877539,1781227840000,-500.0,0.00035616,18]
[424877536,1781227840000,-500.0,0.00035616,18]
[424877538,1781227840000,-500.0,0.00035616,18]
[424877517,1781227840000,-500.0,0.00035616,18]
[424877526,1781227840000,-153.97618788,0.00035616,18]
[424877515,1781227840000,-500.0,0.00035616,18]
[424877495,1781227840000,-500.0,0.00035616,18]
[424877516,1781227840000,-500.0,0.00035616,18]
[424877543,1781227840000,-500.0,0.00035616,18]
[424877490,1781227840000,-500.0,0.00035616,18]
[424877493,1781227840000,-500.0,0.00035616,18]
[424877491,1781227840000,-500.0,0.00035616,18]
[424877494,1781227840000,-500.0,0.00035616,18]
[424877489,1781227840000,-500.0,0.00035616,18]
[424877492,1781227840000,-500.0,0.00035616,18]
[424877496,1781227840000,-898.9,0.00035616,18]
[424877506,1781227840000,-500.0,0.00035616,18]
[424877500,1781227840000,-500.0,0.00035616,18]
[424877503,1781227840000,-500.0,0.00035616,18]
[424877498,1781227840000,-500.0,0.00035616,18]
[424877514,1781227840000,-504.79,0.00035616,18]
[424877501,1781227840000,-500.0,0.00035616,18]
[424877505,1781227840000,-500.0,0.00035616,18]
[424877504,1781227840000,-500.0,0.00035616,18]
[424877497,1781227840000,-507.02863497,0.00035616,18]
[424877507,1781227840000,-211.26660985,0.00035616,18]
[424877509,1781227840000,-500.0,0.00035616,18]
[424877508,1781227840000,-500.0,0.00035616,18]
[424877512,1781227840000,-500.0,0.00035616,18]
[424877520,1781227840000,-500.0,0.00035616,18]
[424877521,1781227840000,-500.0,0.00035616,18]
[424877519,1781227840000,-500.0,0.00035616,18]
[424877511,1781227840000,-500.0,0.00035616,18]
[424877510,1781227840000,-500.0,0.00035616,18]
[424877502,1781227840000,-500.0,0.00035616,18]
[424877540,1781227840000,-500.0,0.00035616,18]
[424877499,1781227840000,-500.0,0.00035616,18]
[424877552,1781227840000,-500.0,0.00035616,18]
[424877581,1781227840000,-500.0,0.00035616,18]
[424877582,1781227840000,-500.0,0.00035616,18]
[424877584,1781227840000,-579.42,0.00035616,18]
[424877588,1781227840000,-684.4,0.00035616,18]
[424877578,1781227840000,-500.0,0.00035616,18]
[424877587,1781227840000,-500.0,0.00035616,18]
[424877589,1781227840000,-500.0,0.00035616,18]
[424877591,1781227840000,-500.0,0.00035616,18]
[424877597,1781227840000,-500.0,0.00035616,18]
[424877592,1781227840000,-500.0,0.00035616,18]
[424877595,1781227840000,-500.0,0.00035616,18]
[424877596,1781227840000,-500.0,0.00035616,18]
[424877577,1781227840000,-500.0,0.00035616,18]
[424877598,1781227840000,-500.0,0.00035616,18]
[424877594,1781227840000,-500.0,0.00035616,18]
[424877599,1781227840000,-500.0,0.00035616,18]
[424877601,1781227840000,-500.0,0.00035616,18]
[424877590,1781227840000,-932.62,0.00035616,18]
[424877602,1781227840000,-530.13,0.00035616,18]
[424877600,1781227840000,-500.0,0.00035616,18]
[424877603,1781227840000,-500.0,0.00035616,18]
[424877604,1781227840000,-419.8002456,0.00035616,18]
[424877605,1781227840000,-935.84756533,0.00023988,4]
[424877608,1781227840000,-500.0,0.00035616,18]
[424877606,1781227840000,-5690.11243467,0.00023988,4]
[424877548,1781227840000,-500.0,0.00035616,18]
[424877593,1781227840000,-500.0,0.00035616,18]
[424877579,1781227840000,-500.0,0.00035616,18]
[424877607,1781227840000,-343.1797544,0.00035616,18]
[424877580,1781227840000,-863.99,0.00035616,18]
[424877550,1781227840000,-500.0,0.00035616,18]
[424877553,1781227840000,-500.0,0.00035616,18]
[424877555,1781227840000,-261.48155765,0.00035616,18]
[424877551,1781227840000,-500.0,0.00035616,2]
[424877549,1781227840000,-500.0,0.00035616,18]
[424877558,1781227840000,-500.0,0.00035616,18]
[424877559,1781227840000,-500.0,0.00035616,18]
[424877554,1781227840000,-238.51844235,0.00035616,18]
[424877556,1781227840000,-990.95,0.00035616,18]
[424877561,1781227840000,-500.0,0.00035616,18]
[424877573,1781227840000,-500.0,0.00035616,18]
[424877571,1781227840000,-500.0,0.00035616,18]
[424877563,1781227840000,-500.0,0.00035616,18]
[424877557,1781227840000,-500.0,0.00035616,18]
[424877560,1781227840000,-500.0,0.00035616,18]
[424877572,1781227840000,-505.88,0.00035616,6]
[424877576,1781227840000,-500.0,0.00035616,18]
[424877575,1781227840000,-572.97,0.00035616,18]
[424877574,1781227840000,-500.0,0.00035616,18]
[424877567,1781227840000,-500.0,0.00035616,18]
[424877569,1781227840000,-500.0,0.00035616,18]
[424877583,1781227840000,-500.0,0.00035616,18]
[424877568,1781227840000,-500.0,0.00035616,18]
[424877565,1781227840000,-144.72394019,0.00035616,18]
[424877564,1781227840000,-500.0,0.00035616,18]
[424877585,1781227840000,-500.0,0.00035616,18]
[424877570,1781227840000,-500.0,0.00035616,18]
[424877566,1781227840000,-1543.95605981,0.00035616,18]
[424877609,1781227841000,-500.0,0.00035616,18]
[424877610,1781227841000,-500.0,0.00035616,18]
[424877612,1781227841000,-29.38130208,0.00035616,18]
[424877620,1781227841000,-500.0,0.00035616,18]
[424877616,1781227841000,-500.0,0.00035616,18]
[424877618,1781227841000,-37.47682752,0.00035616,18]
[424877614,1781227841000,-500.0,0.00035616,18]
[424877613,1781227841000,-470.61869792,0.00035616,18]
[424877617,1781227841000,-462.52317248,0.00035616,18]
[424877615,1781227841000,-500.0,0.00035616,18]
[424877611,1781227841000,-500.0,0.00035616,18]
[424877619,1781227841000,-562.86,0.00035616,18]
[424877621,1781227841000,-500.0,0.00035616,18]
[424877628,1781227841000,-500.0,0.00035616,18]
[424877631,1781227841000,-299.02337007,0.00035616,18]
[424877627,1781227841000,-500.0,0.00035616,18]
[424877623,1781227841000,-500.0,0.00035616,18]
[424877630,1781227841000,-500.0,0.00035616,18]
[424877625,1781227841000,-999.64,0.00035616,18]
[424877624,1781227841000,-500.0,0.00035616,18]
[424877626,1781227841000,-500.0,0.00035616,18]
[424877629,1781227841000,-500.0,0.00035616,18]
[424877622,1781227841000,-500.0,0.00035616,18]
[424877674,1781227846000,-1686.50905313,0.00035616,18]
[424877672,1781227846000,-342.04945342,0.00035616,18]
[424877670,1781227846000,-2663.07662993,0.00035616,18]
[424877665,1781227846000,-1002.117837,0.000228,2]
[424877673,1781227846000,-899.1,0.00035616,18]
[424877671,1781227846000,-157.95054658,0.00035616,18]
[424877669,1781227846000,-4738.76282351,0.0003526,2]
[424877667,1781227846000,-261.23717649,0.0003526,2]
[424877685,1781227847000,-346.89859367,0.00035616,18]
[424877681,1781227847000,-418.56094687,0.00035616,18]
[424877683,1781227847000,-374.39925984,0.00035616,18]
[424877688,1781227922000,152.0,0.0002,120]
[424877691,1781227969000,258.0,0.0002,120]
[424877696,1781228145000,5000.0,0.00024658,30]
[424877703,1781228274000,1475.18,0.00024658,30]
[424877761,1781229032000,-417.15472785,0.00023421,2]
[424877760,1781229032000,-121.4515526,0.000233,2]
[424877759,1781229032000,-462.228,0.000233,2]
[424877764,1781229032000,-168.80601594,0.000243,7]
[424877756,1781229032000,-500.0,0.00020986,2]
[424877762,1781229032000,-160.0,0.00023421,2]
[424877765,1781229032000,-70.46258306,0.000243,7]
[424877754,1781229032000,-5000.0,0.00018975,9]
[424877763,1781229032000,-169.28338954,0.00023845,2]
[424877757,1781229032000,-159.51239932,0.0002295,7]
[424877755,1781229032000,-5000.0,0.00019167,9]
[424877758,1781229032000,-869.6064474,0.000233,2]
[424877767,1781229032000,-1578.47,0.000247,2]
[424877779,1781229032000,-1393.6255,0.00025444,2]
[424877769,1781229032000,-150.5279103,0.00025,30]
[424877770,1781229032000,-160.0,0.00025184,2]
[424877783,1781229032000,-208.33114081,0.00029429,3]
[424877781,1781229032000,-73.12696926,0.000261,2]
[424877782,1781229032000,-152.0,0.000292,120]
[424877778,1781229032000,-500.0,0.00025443,2]
[424877777,1781229032000,-502.54646081,0.00025443,2]
[424877780,1781229032000,-783.22313074,0.000261,2]
[424877774,1781229032000,-160.0,0.00025184,2]
[424877772,1781229032000,-160.0,0.00025184,2]
[424877776,1781229032000,-381.86858543,0.00025442,2]
[424877773,1781229032000,-499.61725494,0.00025184,2]
[424877766,1781229032000,-1578.47,0.000247,2]
[424877775,1781229032000,-509.14568473,0.00025442,2]
[424877817,1781229041000,-360.00953459,0.00034246,2]
[424877823,1781229041000,-152.0,0.00034699,7]
[424877816,1781229041000,-167.4,0.00033984,37]
[424877821,1781229041000,-20.27314234,0.00034647,2]
[424877815,1781229041000,-279.53259926,0.000332,117]
[424877820,1781229041000,-131.72685766,0.00034647,2]
[424877818,1781229041000,-152.0,0.00034637,7]
[424877819,1781229041000,-152.0,0.00034637,7]
[424877813,1781229041000,-186.0,0.00032472,2]
[424877814,1781229041000,-214.96121755,0.00033132,2]
[424877800,1781229041000,-1776.13358044,0.00029135,9]
[424877810,1781229041000,-790.436,0.0003178,120]
[424877809,1781229041000,-500.0,0.0003178,120]
[424877807,1781229041000,-170.50162377,0.00030355,2]
[424877806,1781229041000,-304.84088117,0.00030355,2]
[424877833,1781229041000,-3314.1033772,0.00035161,2]
[424877805,1781229041000,-685.3686067,0.00030251,30]
[424877801,1781229041000,-3223.86641956,0.00029135,9]
[424877804,1781229041000,-172.2093264,0.00030137,120]
[424877803,1781229041000,-189.48,0.00029472,2]
[424877802,1781229041000,-151.64700377,0.00029429,3]
[424877812,1781229041000,-1533.15176814,0.00032285,2]
[424877834,1781229041000,-3147.7795338,0.00035161,2]
[424877811,1781229041000,-158.250275,0.00032283,2]
[424877830,1781229041000,-500.0,0.00035125,7]
[424877848,1781229041000,-143503.01105504,0.000353,2]
[424877847,1781229041000,-842.65351367,0.000353,2]
[424877842,1781229041000,-500.0,0.00035299,7]
[424877845,1781229041000,-71963.16860774,0.000353,2]
[424877843,1781229041000,-18133.72516729,0.000353,2]
[424877844,1781229041000,-10209.98579081,0.000353,2]
[424877846,1781229041000,-118059.56245014,0.000353,2]
[424877841,1781229041000,-500.0,0.00035299,7]
[424877840,1781229041000,-490.92599024,0.00035299,7]
[424877839,1781229041000,-500.0,0.00035299,7]
[424877836,1781229041000,-152.0,0.00035238,30]
[424877838,1781229041000,-500.0,0.00035299,7]
[424877835,1781229041000,-245.06070293,0.000352,7]
[424877831,1781229041000,-500.0,0.00035125,7]
[424877832,1781229041000,-500.47860678,0.00035125,7]
[424877829,1781229041000,-421.813,0.00035,120]
[424877828,1781229041000,-152.0,0.00034824,7]
[424877824,1781229041000,-152.0,0.00034699,7]
[424877827,1781229041000,-152.0,0.00034761,7]
[424877826,1781229041000,-152.0,0.00034761,7]
[424877825,1781229041000,-152.0,0.00034699,7]
[424877837,1781229041000,-500.0,0.00035299,7]
[424877822,1781229041000,-152.0,0.00034647,2]
[424877854,1781229046000,-152.0,0.00035005,2]
[424877853,1781229046000,-152.0,0.00034653,7]
[424877857,1781229046000,-10990.25083971,0.000353,2]
[424877855,1781229046000,-6051.00000001,0.000353,2]
[424877856,1781229046000,-720.8001,0.000353,2]
[424877859,1781229046000,-26261.35523087,0.000353,2]
[424877858,1781229046000,-74142.36776919,0.000353,2]
[424877879,1781229240000,5000.0,0.00024658,30]
[424877880,1781229255000,5000.0,0.00024658,30]
[424877881,1781229263000,5000.0,0.00024658,30]
[424877883,1781229418000,1012.64743,0.00024657,30]
[424877888,1781229453000,34387.65136304,7.6e-05,2]
[424877886,1781229453000,39625.97,7.6e-05,2]
[424877887,1781229453000,43810.46851904,7.6e-05,2]
[424877893,1781229485000,160.0,0.00023082,30]
[424877903,1781229683000,548.0,0.00024658,30]
[424877904,1781229693000,583.54715,0.00019953,30]
[424877905,1781229693000,693.989366,0.00021644,30]
[424877906,1781229694000,549.652545,0.00024011,30]
[424877959,1781229979000,507.273369,0.00021365,30]
[424877958,1781229979000,538.511901,0.00019696,30]
[424877960,1781229980000,214.384242,0.00023702,30]
[424877964,1781230054000,782.34797229,0.000101,9]
[424878097,1781230238000,-2182.08676869,0.00015,2]
[424878092,1781230238000,-19336.64391558,0.000115,2]
[424878090,1781230238000,-5000.0,0.00010251,9]
[424878093,1781230238000,-500.0,0.00013698,2]
[424878091,1781230238000,-2414.39694897,0.00011,2]
[424878095,1781230238000,-500.0,0.00013698,2]
[424878096,1781230238000,-227.305469,0.0001462,2]
[424878094,1781230238000,-500.0,0.00013698,2]
[424878099,1781230238000,-500.0,0.00015419,2]
[424878103,1781230238000,-227.305469,0.00017698,2]
[424878100,1781230238000,-486.49196472,0.00015419,2]
[424878101,1781230238000,-500.0,0.00015419,2]
[424878105,1781230238000,-390.27553527,0.00018831,2]
[424878102,1781230238000,-15445.7217161,0.0001542,2]
[424878106,1781230238000,-167.685,0.00018928,2]
[424878104,1781230238000,-376.19127116,0.00018163,2]
[424878098,1781230238000,-390.27553527,0.00015319,2]
[424878152,1781230239000,-3000.0,0.0002468,2]
[424878149,1781230239000,-3000.0,0.0002465,2]
[424878151,1781230239000,-3000.0,0.0002467,2]
[424878148,1781230239000,-3000.0,0.0002464,2]
[424878146,1781230239000,-3000.0,0.0002462,2]
[424878133,1781230239000,-200.0,0.00023027,2]
[424878141,1781230239000,-1712.21584811,0.00023811,2]
[424878139,1781230239000,-2233.06160511,0.00023073,120]
[424878137,1781230239000,-1565.95428192,0.00023073,15]
[424878150,1781230239000,-3000.0,0.0002466,2]
[424878135,1781230239000,-150.07640461,0.00023073,30]
[424878140,1781230239000,-200.0,0.00023488,2]
[424878155,1781230239000,-3000.0,0.000247,2]
[424878159,1781230239000,-3000.0,0.0002474,2]
[424878156,1781230239000,-3000.0,0.0002471,2]
[424878147,1781230239000,-3000.0,0.0002463,2]
[424878153,1781230239000,-864.0,0.00024683,10]
[424878145,1781230239000,-3000.0,0.0002461,2]
[424878157,1781230239000,-3000.0,0.0002472,2]
[424878154,1781230239000,-3000.0,0.0002469,2]
[424878161,1781230239000,-3000.0,0.0002476,2]
[424878172,1781230239000,-500.0,0.00025443,2]
[424878170,1781230239000,-3857.045901,0.0002484,2]
[424878171,1781230239000,-965.941266,0.0002485,30]
[424878160,1781230239000,-3000.0,0.0002475,2]
[424878164,1781230239000,-3000.0,0.0002479,2]
[424878162,1781230239000,-3000.0,0.0002477,2]
[424878158,1781230239000,-3000.0,0.0002473,2]
[424878136,1781230239000,-1180.9871366,0.00023073,60]
[424878128,1781230239000,-1712.21584811,0.00022055,2]
[424878142,1781230239000,-200.0,0.0002395,2]
[424878107,1781230239000,-500.0,0.00019999,2]
[424878119,1781230239000,-600.0,0.00020399,2]
[424878109,1781230239000,-500.0,0.00019999,2]
[424878108,1781230239000,-597.01502073,0.00019999,2]
[424878111,1781230239000,-520.36368676,0.00019999,2]
[424878112,1781230239000,-500.0,0.00019999,2]
[424878110,1781230239000,-500.0,0.00019999,2]
[424878113,1781230239000,-500.0,0.00019999,2]
[424878116,1781230239000,-492.97875218,0.00019999,2]
[424878117,1781230239000,-222057.53964798,0.0002,2]
[424878118,1781230239000,-1712.21584811,0.00020299,2]
[424878114,1781230239000,-500.0,0.00019999,2]
[424878115,1781230239000,-500.0,0.00019999,2]
[424878122,1781230239000,-280.9224295,0.00021,2]
[424878120,1781230239000,-259.70822306,0.000209,2]
[424878123,1781230239000,-200.0,0.00021918,2]
[424878132,1781230239000,-200.0,0.00022566,2]
[424878124,1781230239000,-200.0,0.00021918,2]
[424878127,1781230239000,-200.0,0.00021918,2]
[424878125,1781230239000,-200.0,0.00021918,2]
[424878131,1781230239000,-720.0,0.00022439,10]
[424878130,1781230239000,-390.27553527,0.00022342,2]
[424878126,1781230239000,-200.0,0.00021918,2]
[424878129,1781230239000,-200.0,0.00022104,2]
[424878121,1781230239000,-300.0,0.000209,2]
[424878163,1781230239000,-3000.0,0.0002478,2]
[424878134,1781230239000,-628.35123183,0.00023073,30]
[424878144,1781230239000,-3000.0,0.000246,2]
[424878166,1781230239000,-3000.0,0.0002481,2]
[424878138,1781230239000,-47210.72055807,0.00023073,30]
[424878168,1781230239000,-3000.0,0.0002482,2]
[424878203,1781230239000,-500.0,0.00034851,7]
[424878208,1781230239000,-500.0,0.00034851,7]
[424878204,1781230239000,-500.0,0.00034851,7]
[424878205,1781230239000,-378.76042482,0.00034851,7]
[424878206,1781230239000,-500.0,0.00034851,7]
[424878207,1781230239000,-500.0,0.00034851,7]
[424878209,1781230239000,-500.0,0.00034851,7]
[424878211,1781230239000,-500.0,0.00034851,7]
[424878221,1781230239000,-500.0,0.00034851,7]
[424878210,1781230239000,-500.0,0.00034851,7]
[424878219,1781230239000,-500.0,0.00034851,7]
[424878220,1781230239000,-500.0,0.00034851,7]
[424878216,1781230239000,-500.0,0.00034851,7]
[424878202,1781230239000,-500.0,0.00034851,7]
[424878213,1781230239000,-500.0,0.00034851,7]
[424878217,1781230239000,-500.0,0.00034851,7]
[424878218,1781230239000,-500.0,0.00034851,7]
[424878214,1781230239000,-500.0,0.00034851,7]
[424878222,1781230239000,-500.0,0.00034851,7]
[424878224,1781230239000,-160.0,0.00034851,7]
[424878223,1781230239000,-370.19824185,0.00034851,7]
[424878225,1781230239000,-2062.81083897,0.00035,120]
[424878226,1781230239000,-1033.8010584,0.00035101,2]
[424878227,1781230239000,-164.9994914,0.00035101,2]
[424878228,1781230239000,-156.7187148,0.00035101,2]
[424878229,1781230239000,-161.34887542,0.0003516,2]
[424878230,1781230239000,-417.15472785,0.00035264,2]
[424878165,1781230239000,-3000.0,0.000248,2]
[424878212,1781230239000,-500.0,0.00034851,7]
[424878201,1781230239000,-500.0,0.00034851,7]
[424878215,1781230239000,-500.0,0.00034851,7]
[424878200,1781230239000,-500.0,0.00034851,7]
[424878199,1781230239000,-152.0,0.00034767,7]
[424878173,1781230239000,-555.55,0.00025443,2]
[424878175,1781230239000,-1041.699886,0.00025812,60]
[424878178,1781230239000,-160.0,0.00026,30]
[424878174,1781230239000,-1712.21584811,0.00025566,2]
[424878176,1781230239000,-390.27553527,0.00025854,2]
[424878177,1781230239000,-3000.00000079,0.00026,30]
[424878182,1781230239000,-165.45,0.00027828,2]
[424878181,1781230239000,-1712.21584811,0.00027322,2]
[424878184,1781230239000,-209.1,0.00028079,2]
[424878179,1781230239000,-609.877715,0.00027055,30]
[424878180,1781230239000,-1000.0,0.00027151,30]
[424878183,1781230239000,-2772.927217,0.00028073,2]
[424878188,1781230239000,-186.0,0.00029472,2]
[424878169,1781230239000,-3000.0,0.0002483,2]
[424878185,1781230239000,-164.13,0.00028251,2]
[424878197,1781230239000,-152.0,0.00034715,7]
[424878195,1781230239000,-390.27553527,0.00032877,2]
[424878193,1781230239000,-1000.0,0.00032853,30]
[424878192,1781230239000,-186.0,0.00032472,2]
[424878191,1781230239000,-244.0,0.00029866,30]
[424878194,1781230239000,-490.0,0.00032853,30]
[424878198,1781230239000,-152.0,0.00034715,7]
[424878187,1781230239000,-157.66,0.00029451,2]
[424878186,1781230239000,-390.27553527,0.00029365,2]
[424878189,1781230239000,-158.13,0.00029646,2]
[424878196,1781230239000,-152.0,0.00034653,7]
[424878190,1781230239000,-1000.0,0.00029866,30]
[424878280,1781230240000,-500.0,0.00035616,18]
[424878282,1781230240000,-500.0,0.00035616,18]
[424878273,1781230240000,-151.0,0.00035615,18]
[424878262,1781230240000,-186.0,0.00035472,2]
[424878281,1781230240000,-421.34469643,0.00035616,18]
[424878272,1781230240000,-151.0,0.00035615,18]
[424878267,1781230240000,-768.72334842,0.00035615,7]
[424878264,1781230240000,-357.62191,0.000356,120]
[424878269,1781230240000,-151.0,0.00035615,18]
[424878270,1781230240000,-151.0,0.00035615,18]
[424878283,1781230240000,-472.00046816,0.00035616,18]
[424878263,1781230240000,-3000.0,0.000355,30]
[424878258,1781230240000,-555.55,0.00035299,18]
[424878274,1781230240000,-151.0,0.00035615,18]
[424878279,1781230240000,-1422.6314,0.00035616,18]
[424878271,1781230240000,-151.0,0.00035615,18]
[424878278,1781230240000,-192.93199018,0.00035615,18]
[424878277,1781230240000,-151.0,0.00035615,18]
[424878276,1781230240000,-151.0,0.00035615,18]
[424878284,1781230240000,-500.0,0.00035616,18]
[424878286,1781230240000,-442.23450275,0.00035616,18]
[424878290,1781230240000,-500.0,0.00035616,18]
[424878288,1781230240000,-532.08308868,0.00035616,18]
[424878287,1781230240000,-520.93324326,0.00035616,18]
[424878289,1781230240000,-500.0,0.00035616,18]
[424878293,1781230240000,-500.0,0.00035616,18]
[424878291,1781230240000,-500.69499709,0.00035616,18]
[424878265,1781230240000,-200.0,0.00035615,10]
[424878275,1781230240000,-151.0,0.00035615,18]
[424878260,1781230240000,-206.58579952,0.000353,2]
[424878231,1781230240000,-160.0,0.00035264,2]
[424878268,1781230240000,-151.0,0.00035615,18]
[424878292,1781230240000,-856.69,0.00035616,18]
[424878232,1781230240000,-160.0,0.00035264,2]
[424878233,1781230240000,-768.72334842,0.00035264,2]
[424878240,1781230240000,-555.55,0.00035299,18]
[424878241,1781230240000,-555.55,0.00035299,18]
[424878234,1781230240000,-160.0,0.00035264,2]
[424878245,1781230240000,-555.55,0.00035299,18]
[424878242,1781230240000,-555.55,0.00035299,18]
[424878236,1781230240000,-555.55,0.00035298,18]
[424878239,1781230240000,-555.55,0.00035299,18]
[424878235,1781230240000,-500.0,0.00035298,18]
[424878244,1781230240000,-555.55,0.00035299,18]
[424878238,1781230240000,-555.55,0.00035299,18]
[424878237,1781230240000,-285.84344278,0.00035299,18]
[424878243,1781230240000,-555.55,0.00035299,18]
[424878247,1781230240000,-555.55,0.00035299,18]
[424878246,1781230240000,-555.55,0.00035299,18]
[424878249,1781230240000,-555.55,0.00035299,18]
[424878250,1781230240000,-555.55,0.00035299,18]
[424878248,1781230240000,-555.55,0.00035299,18]
[424878251,1781230240000,-555.55,0.00035299,18]
[424878254,1781230240000,-555.55,0.00035299,18]
[424878255,1781230240000,-555.55,0.00035299,18]
[424878252,1781230240000,-555.55,0.00035299,18]
[424878253,1781230240000,-555.55,0.00035299,18]
[424878256,1781230240000,-555.55,0.00035299,18]
[424878257,1781230240000,-555.55,0.00035299,18]
[424878259,1781230240000,-555.6900526,0.00035299,18]
[424878266,1781230240000,-200.0,0.00035615,10]
[424878261,1781230240000,-300.0,0.00035386,38]
[424878294,1781230240000,-500.0,0.00035616,18]
[424878335,1781230240000,-500.0,0.00035616,18]
[424878295,1781230240000,-525.20712981,0.00035616,18]
[424878325,1781230240000,-500.39697126,0.00035616,18]
[424878329,1781230240000,-500.0,0.00035616,18]
[424878330,1781230240000,-531.7831791,0.00035616,18]
[424878336,1781230240000,-521.53772666,0.00035616,18]
[424878326,1781230240000,-525.63353933,0.00035616,18]